bitfinex/quotes_ETHUSD_20241123
["timestamp","ask_amount","ask_price","bid_price","bid_amount"]
[1732401483753,0.04241595,3394.4,3394.0,0.2936]
[1732401484379,5.9885756,3394.5,3394.0,0.2936]
[1732401484587,0.04238392,3394.3,3394.0,0.2936]
[1732401484788,0.04241595,3394.4,3394.0,0.2936]
[1732401484999,0.04235188,3394.2,3394.0,0.2936]
[1732401485195,5.9885756,3394.5,3394.0,0.2936]
[1732401485356,0.04231983,3394.1,3394.0,0.2936]
[1732401485992,5.9885756,3394.5,3394.0,0.2936]
[1732401486156,0.04224297,3394.1,3394.0,0.2936]
[1732401486358,5.9885756,3394.6,3394.0,0.2936]
[1732401486551,0.04224297,3394.1,3394.0,0.2936]
[1732401487096,5.9885756,3394.6,3394.0,0.2936]
[1732401487293,0.04224297,3394.1,3394.0,0.2936]
[1732401487478,5.9885756,3394.6,3394.0,0.2936]
[1732401487663,0.04237112,3394.5,3394.0,0.2936]
[1732401488185,6.5385756,3394.7,3394.0,0.2936]
[1732401488383,0.04233909,3394.4,3394.0,0.2936]
[1732401488562,5.9885756,3394.6,3394.0,0.2936]
[1732401488763,0.04230705,3394.3,3394.0,0.2936]
[1732401488999,6.5385756,3394.7,3394.0,0.2936]
[1732401489457,0.04240316,3394.6,3394.0,0.2936]
[1732401489664,6.03097876,3394.6,3394.0,0.2936]
[1732401489865,0.04240316,3394.6,3394.0,0.2936]
[1732401491068,0.04240316,3394.6,3394.0,0.71847146]
[1732401491690,0.04240316,3394.6,3394.0,0.2936]
[1732401492607,0.04240316,3394.6,3394.1,0.7833]
[1732401492993,0.55,3394.9,3394.1,0.7833]
[1732401493244,0.04237112,3394.5,3394.1,0.7833]
[1732401493409,0.55,3394.9,3394.1,0.7833]
[1732401493579,0.04233909,3394.4,3394.1,1.19099]
[1732401493915,0.04230705,3394.3,3394.1,0.7833]
[1732401494215,0.55,3395.0,3394.1,0.7833]
[1732401494370,0.04227501,3394.2,3394.1,0.7833]
[1732401494715,1.24703193,3394.9,3394.2,0.2936]
[1732401494898,0.55,3394.8,3394.2,0.2936]
[1732401495568,0.59246722,3394.8,3394.2,0.2936]
[1732401497678,0.04246722,3394.8,3394.4,0.7833]
[1732401497877,0.55,3395.0,3394.5,0.02945625]
[1732401498117,0.04251402,3394.9,3394.5,0.02945625]
[1732401498306,0.04251402,3394.9,3394.4,0.7833]
[1732401499323,0.04251402,3394.9,3394.6,1.0769]
[1732401499525,1.24703193,3395.5,3394.6,1.0769]
[1732401499682,0.04116798,3394.8,3394.6,1.0769]
[1732401499882,1.24703193,3395.5,3394.7,0.029451]
[1732401500084,0.04136012,3395.4,3394.7,0.029451]
[1732401500737,0.04136012,3395.4,3394.6,1.10635086]
[1732401501715,0.04136012,3395.4,3394.7,0.16834214]
[1732401502222,0.55,3395.3,3394.7,0.16834214]
[1732401502730,0.04129608,3395.2,3394.7,0.16834214]
[1732401504724,0.04129608,3395.2,3394.8,0.2936]
[1732401505083,6.5385756,3395.3,3394.8,0.2936]
[1732401505285,6.02987858,3395.2,3394.8,0.2936]
[1732401505480,0.04130298,3395.2,3394.8,0.2936]
[1732401505696,6.5385756,3395.3,3394.8,0.2936]
[1732401505914,0.04129904,3395.2,3394.8,0.2936]
[1732401506084,6.02987464,3395.2,3394.8,0.2936]
[1732401506603,7.27690657,3395.2,3394.8,0.2936]
[1732401506802,7.27690657,3395.2,3394.7,0.2936]
[1732401508261,5.9885756,3395.1,3394.7,0.2936]
[1732401508589,0.04128131,3395.0,3394.7,0.2936]
[1732401510728,7.23560753,3395.2,3394.7,0.2936]
[1732401510884,0.04124928,3394.9,3394.7,0.2936]
[1732401511090,5.9885756,3395.1,3394.7,0.70129]
[1732401511289,0.04128131,3395.0,3394.7,0.2936]
[1732401511891,5.9885756,3395.2,3394.7,0.2936]
[1732401512116,0.04131038,3395.1,3394.7,0.2936]
[1732401512935,6.02988598,3395.1,3394.7,0.2936]
[1732401513140,0.04131038,3395.1,3394.7,0.2936]
[1732401516237,0.04131038,3395.1,3394.7,0.32305319]
[1732401516438,5.9885756,3395.3,3394.7,0.32305319]
[1732401516439,0.55,3395.2,3394.7,0.32305319]
[1732401516636,0.04128131,3395.0,3394.7,0.32305319]
[1732401516837,0.04131334,3395.1,3394.7,0.32305319]
[1732401517040,0.04124928,3394.9,3394.7,0.32305319]
[1732401517249,0.55,3395.2,3394.7,0.32305319]
[1732401517419,0.04121726,3394.8,3394.7,0.32305319]
[1732401517618,0.55,3395.2,3394.7,0.32305319]
[1732401517830,0.04121726,3394.8,3394.7,0.32305319]
[1732401518034,0.55,3395.2,3394.7,0.32305319]
[1732401518284,0.04121726,3394.8,3394.7,0.32305319]
[1732401518459,0.55,3395.2,3394.7,0.32305319]
[1732401518633,0.02758437,3394.8,3394.7,0.32305319]
[1732401518819,0.55,3395.2,3394.7,0.32305319]
[1732401519019,0.04076283,3394.8,3394.7,0.32305319]
[1732401519251,5.9885756,3395.3,3394.7,0.2936]
[1732401519458,0.04076283,3394.8,3394.7,0.2936]
[1732401519669,5.9885756,3395.3,3394.7,0.2936]
[1732401519832,0.04076283,3394.8,3394.7,0.2936]
[1732401520032,5.9885756,3395.3,3394.7,0.2936]
[1732401520247,0.04076283,3394.8,3394.7,0.2936]
[1732401520440,5.9885756,3395.3,3394.7,0.2936]
[1732401520647,0.04076283,3394.8,3394.7,0.70129]
[1732401520868,5.9885756,3395.3,3394.7,0.2936]
[1732401521044,0.04076483,3394.8,3394.7,0.2936]
[1732401521253,5.9885756,3395.3,3394.7,0.70423519]
[1732401521451,0.04076483,3394.8,3394.7,0.70423519]
[1732401521636,5.9885756,3395.3,3394.7,0.2936]
[1732401521834,0.04076483,3394.8,3394.7,0.2936]
[1732401522078,5.9885756,3395.2,3394.7,0.70129]
[1732401522282,0.04076483,3394.8,3394.7,0.2936]
[1732401522435,5.9885756,3395.2,3394.7,0.2936]
[1732401522636,0.04076483,3394.8,3394.7,0.70129]
[1732401522867,5.9885756,3395.2,3394.7,0.2936]
[1732401523037,0.04076483,3394.8,3394.7,0.2936]
[1732401523240,5.9885756,3395.2,3394.7,0.32305337]
[1732401523437,0.0393539,3394.8,3394.7,0.2936]
[1732401523639,5.9885756,3395.2,3394.7,0.32305336]
[1732401523837,0.04071774,3394.8,3394.7,0.2936]
[1732401524079,5.9885756,3395.2,3394.7,0.32305336]
[1732401524243,0.04071779,3394.8,3394.7,0.2936]
[1732401524574,0.04071779,3394.8,3394.7,0.32305336]
[1732401524870,5.9885756,3395.2,3394.7,0.32305336]
[1732401525036,0.04071779,3394.8,3394.7,0.32305336]
[1732401525237,5.9885756,3395.2,3394.7,0.32305336]
[1732401525480,0.04071779,3394.8,3394.7,0.32305336]
[1732401525956,5.9885756,3395.2,3394.7,0.32305336]
[1732401526143,0.04071779,3394.8,3394.7,0.32305336]
[1732401526350,1.24703193,3395.1,3394.7,0.32305336]
[1732401526565,0.04071779,3394.8,3394.7,0.32305336]
[1732401526751,1.24703193,3395.1,3394.7,0.2936]
[1732401526950,0.04071779,3394.8,3394.7,0.70129]
[1732401527152,1.24703193,3395.3,3394.7,0.2936]
[1732401527357,0.04071779,3394.8,3394.7,3.2936]
[1732401527556,1.24703193,3395.3,3394.7,0.2936]
[1732401527880,0.04041446,3394.8,3394.7,3.2936]
[1732401528083,1.24703193,3395.3,3394.7,3.2936]
[1732401528582,0.04054256,3395.2,3394.7,3.2936]
[1732401528739,0.04054256,3395.2,3394.7,0.2936]
[1732401528942,0.04054256,3395.2,3394.7,3.2936]
[1732401529986,0.04054256,3395.2,3394.7,0.2936]
[1732401530447,0.04054256,3395.2,3394.7,3.2936]
[1732401530648,0.04054256,3395.2,3394.9,0.2936]
[1732401531086,1.24703193,3395.3,3394.9,0.2936]
[1732401531252,0.03931881,3395.1,3394.9,0.2936]
[1732401531443,1.24703193,3395.3,3394.9,0.2936]
[1732401531639,0.03928679,3395.0,3394.8,0.32305182]
[1732401531845,1.24703193,3395.3,3395.0,0.2936]
[1732401532046,7.23560753,3395.6,3395.0,0.2936]
[1732401532580,7.23560753,3395.6,3395.1,0.02944949]
[1732401533158,5.9885756,3395.6,3395.1,0.02944949]
[1732401533349,7.23560753,3395.7,3395.1,0.2936]
[1732401533752,1.24703193,3395.7,3395.1,0.70651495]
[1732401534070,1.24703193,3395.7,3395.3,0.2936]
[1732401534660,1.24703193,3395.7,3395.4,0.02944796]
[1732401535893,1.24703193,3395.7,3395.3,0.2936]
[1732401538460,1.24703193,3395.7,3395.5,0.2936]
[1732401540172,5.9885756,3396.0,3395.5,0.2936]
[1732401540363,0.03954985,3395.6,3395.5,0.2936]
[1732401540562,1.24703193,3395.9,3395.5,0.2936]
[1732401540897,0.03960996,3395.6,3395.5,0.2936]
[1732401541059,1.24703193,3395.9,3395.5,0.2936]
[1732401541262,0.03960996,3395.6,3395.5,0.2936]
[1732401541469,1.24703193,3395.9,3395.5,0.2936]
[1732401541702,0.03960996,3395.6,3395.5,0.2936]
[1732401541898,1.24703193,3395.9,3395.5,0.2936]
[1732401542275,0.03967398,3395.8,3395.5,0.2936]
[1732401549999,7.1400476,3397.1,3395.9,1.0997]
[1732401550208,7.1400476,3397.1,3396.0,0.02943924]
[1732401550209,1.24703193,3396.9,3396.0,0.02943924]
[1732401550691,1.24703193,3396.9,3396.2,0.2936]
[1732401552035,1.24703193,3397.4,3396.5,0.2936]
[1732401552197,1.24703193,3397.4,3396.6,1.07503418]
[1732401552392,1.24703193,3397.4,3396.8,0.2936]
[1732401552720,1.24703193,3397.4,3396.9,0.02943418]
[1732401553425,1.24703193,3397.4,3396.7,0.2936]
[1732401554523,1.24703193,3397.4,3396.7,1.0456]
[1732401556422,1.24703193,3397.1,3396.4,1.0456]
[1732401556625,1.24703193,3397.1,3396.4,0.752]
[1732401557355,1.24703193,3396.8,3396.0,0.752]
[1732401557641,1.24703193,3396.8,3396.0,1.0456]
[1732401557932,0.0327147,3396.7,3396.0,1.0456]
[1732401558248,0.8509147,3396.7,3396.1,0.16602263]
[1732401558450,0.8509147,3396.7,3396.1,3.16602263]
[1732401559300,0.8509147,3396.7,3396.1,0.16602263]
[1732401559536,0.8509147,3396.7,3396.2,3.0]
[1732401559836,0.8509147,3396.7,3396.1,0.16602263]
[1732401559837,0.8509147,3396.7,3396.3,0.42116226]
[1732401560050,0.8509147,3396.7,3396.1,0.16602263]
[1732401560051,0.8509147,3396.7,3396.2,3.0]
[1732401560227,0.8509147,3396.7,3396.1,0.16602263]
[1732401560431,0.8509147,3396.7,3396.2,3.0]
[1732401560739,0.8509147,3396.7,3396.3,0.42116226]
[1732401560907,0.8509147,3396.7,3396.3,3.0]
[1732401561109,0.0327147,3396.7,3396.1,0.16602263]
[1732401561332,2.06523193,3397.1,3396.1,0.19546057]
[1732401561530,0.03084272,3397.0,3396.1,0.19546057]
[1732401564344,0.55,3396.4,3395.5,1.0456]
[1732401564541,0.55,3396.4,3395.5,0.752]
[1732401564542,0.03069391,3396.3,3395.5,0.752]
[1732401565336,0.03069391,3396.3,3395.6,0.2936]
[1732401566740,0.8182,3396.2,3395.6,0.2936]
[1732401566945,0.0306299,3396.1,3395.7,0.2936]
[1732401567242,0.5806299,3396.1,3395.7,0.2936]
[1732401567549,0.6806299,3396.1,3395.7,0.2936]
[1732401567904,0.6806299,3396.1,3395.3,0.2936]
[1732401568307,0.5806299,3396.1,3395.3,0.2936]
[1732401568819,0.5806299,3396.1,3395.4,0.02944754]
[1732401569020,0.55,3396.1,3395.5,0.2936]
[1732401569244,0.58059789,3396.0,3395.5,0.70110475]
[1732401569456,0.55,3396.0,3395.5,0.2936]
[1732401569820,2.06523193,3396.2,3395.5,0.2936]
[1732401570029,2.06523193,3396.2,3395.6,0.02944755]
[1732401570328,0.0306299,3396.1,3395.7,0.62884951]
[1732401570531,0.0306299,3396.1,3395.7,0.2936]
[1732401570739,0.03059789,3396.0,3395.7,0.2936]
[1732401570910,0.8182,3396.2,3395.7,0.2936]
[1732401571112,0.0306299,3396.1,3395.3,0.32304517]
[1732401587625,0.03840314,3396.1,3395.3,0.32304517]
[1732401599070,0.7792,3396.0,3395.3,0.02944517]
[1732401599259,0.7792,3396.0,3395.4,0.2936]
[1732401599465,0.03829075,3395.9,3395.4,0.2936]
[1732401600373,1.28532268,3395.9,3395.4,0.2936]
[1732401600676,1.28532268,3395.9,3395.1,0.2936]
[1732401600883,0.7792,3395.5,3395.1,0.2936]
[1732401601260,0.03807248,3395.4,3395.1,0.2936]
[1732401601766,0.03807248,3395.4,3394.9,0.58847716]
[1732401601767,0.03807248,3395.4,3395.0,0.2936]
[1732401603196,0.7792,3396.2,3395.2,0.2936]
[1732401603367,0.7792,3396.2,3395.5,0.2936]
[1732401603573,0.7792,3396.2,3395.5,0.32304277]
[1732401605166,2.02623193,3396.4,3395.5,0.32304277]
[1732401605405,0.7792,3396.4,3395.7,0.2936]
[1732401605598,0.7792,3396.4,3395.9,1.0672]
[1732401605941,0.7792,3396.6,3395.9,1.0672]
[1732401606104,0.7792,3396.6,3396.0,0.02944176]
[1732401606892,0.7792,3396.6,3396.2,0.2936]
[1732401610804,0.04053387,3396.5,3396.2,0.2936]
[1732401614020,1.24703193,3396.8,3396.2,0.2936]
[1732401614309,0.04048586,3396.4,3396.2,0.2936]
[1732401614501,1.24703193,3396.8,3396.2,0.2936]
[1732401614682,0.04043786,3396.3,3396.2,0.2936]
[1732401614884,1.24703193,3396.8,3396.2,0.2936]
[1732401615089,0.04043786,3396.3,3396.2,0.2936]
[1732401615622,1.24703193,3396.8,3396.3,0.2936]
[1732401616724,1.24703193,3396.8,3396.1,0.2936]
[1732401622830,0.7602,3396.9,3396.1,0.2936]
[1732401623037,1.24703193,3396.8,3396.1,0.2936]
[1732401623234,1.24703193,3396.8,3396.3,0.2936]
[1732401627518,1.24703193,3396.8,3396.5,0.2936]
[1732401628359,2.00723193,3397.1,3396.5,0.2936]
[1732401628718,0.03718434,3397.0,3396.5,0.2936]
[1732401632359,0.05754828,3397.0,3396.5,0.2936]
[1732401641453,0.05754828,3397.0,3396.5,3.2936]
[1732401641661,0.05754828,3397.0,3396.6,0.70487]
[1732401641823,0.05754828,3397.0,3396.6,0.2936]
[1732401642562,0.05754828,3397.0,3396.5,3.2936]
[1732401643853,0.05754828,3397.0,3396.5,0.2936]
[1732401644057,2.07323193,3397.4,3396.5,0.32303441]
[1732401644359,0.05757399,3396.9,3396.5,0.32303441]
[1732401644522,2.07323193,3397.4,3396.5,0.32303441]
[1732401645067,0.05769837,3397.3,3396.5,0.32303441]
[1732401647362,0.05769837,3397.3,3396.5,0.84772128]
[1732401647570,0.05769837,3397.3,3396.6,0.46028213]
[1732401648535,0.05769837,3397.3,3396.7,0.7655]
[1732401650294,0.05769837,3397.3,3396.7,1.34869996]
[1732401650571,0.05769837,3397.3,3396.8,0.02943452]
[1732401650776,0.05769837,3397.3,3396.7,1.34869996]
[1732401651576,0.05769837,3397.3,3396.8,0.80453335]
[1732401651867,0.05769837,3397.3,3397.0,1.0687]
[1732401652076,1.24703193,3397.7,3397.2,3.2936]
[1732401652580,1.24703193,3397.7,3397.2,0.2936]
[1732401652738,1.24703193,3397.7,3397.2,3.2936]
[1732401653280,1.24703193,3397.7,3397.2,3.32303172]
[1732401653440,1.17619263,3397.7,3397.3,0.40981317]
[1732401653862,1.17619263,3397.7,3397.2,3.32303172]
[1732401654493,1.17619263,3397.7,3397.2,0.32303172]
[1732401654975,1.17619263,3397.7,3397.2,3.32303172]
[1732401655176,1.17619263,3397.7,3397.2,0.2936]
[1732401655379,1.17619263,3397.7,3397.2,3.2936]
[1732401655540,1.17619263,3397.7,3397.3,0.40981318]
[1732401655743,1.17619263,3397.7,3397.2,0.2936]
[1732401656083,1.17619263,3397.7,3397.2,3.2936]
[1732401656476,1.17619263,3397.7,3397.2,0.2936]
[1732401656675,1.17619263,3397.7,3397.2,3.2936]
[1732401656878,1.17619263,3397.7,3397.3,0.70047]
[1732401657081,1.17619263,3397.7,3397.3,0.2936]
[1732401660277,0.05422133,3397.6,3397.3,0.2936]
[1732401664919,1.24703193,3397.4,3397.3,0.2936]
[1732401665082,1.24703193,3397.4,3397.0,0.2936]
[1732401665279,1.30119109,3397.4,3397.0,0.2936]
[1732401665977,1.30119109,3397.4,3396.8,0.2936]
[1732401666182,1.30119109,3397.4,3396.8,3.2936]
[1732401666382,1.30119109,3397.4,3396.8,0.76188463]
[1732401666582,1.30119109,3397.4,3396.8,0.2936]
[1732401671817,1.30119109,3397.4,3396.6,0.2936]
[1732401676829,1.30119109,3397.4,3396.6,0.323035]
[1732401677126,1.30119109,3397.4,3396.6,0.2936]
[1732401677328,1.30119109,3397.4,3396.8,0.2936]
[1732401679935,0.05415916,3397.4,3397.0,0.2936]
[1732401681235,0.05415916,3397.4,3397.0,0.72755003]
[1732401681534,0.05415916,3397.4,3397.0,0.2936]
[1732401682631,0.84385916,3397.4,3397.0,0.2936]
[1732401682795,0.84385916,3397.4,3396.8,0.2936]
[1732401693139,0.7266581,3397.4,3396.8,0.2936]
[1732401693450,0.04883887,3397.3,3396.8,0.2936]
[1732401694325,0.04883887,3397.3,3396.8,0.53809027]
[1732401694545,0.04883887,3397.3,3396.8,0.2936]
[1732401695555,6.08558913,3397.3,3396.9,0.2936]
[1732401695729,6.03675026,3397.2,3396.9,0.2936]
[1732401696083,0.04877668,3397.1,3396.9,0.2936]
[1732401696528,6.03675026,3397.3,3396.8,0.2936]
[1732401696729,0.04880778,3397.2,3396.8,0.48268025]
[1732401696957,6.03675026,3397.3,3396.8,0.48268025]
[1732401697330,0.04880778,3397.2,3396.8,0.48268025]
[1732401697557,6.03675026,3397.3,3396.8,0.48268025]
[1732401697758,0.04880778,3397.2,3396.8,0.48268025]
[1732401697920,6.03675026,3397.3,3396.8,0.48268025]
[1732401698255,0.04880778,3397.2,3396.8,0.48268025]
[1732401698757,0.04726834,3397.1,3396.8,0.48268025]
[1732401699054,6.03675026,3397.3,3396.8,0.48268025]
[1732401699250,0.04723724,3397.0,3396.8,0.48268025]
[1732401699458,6.03675026,3397.2,3396.8,0.48268025]
[1732401699656,0.04720614,3396.9,3396.8,0.48268025]
[1732401699877,6.03675026,3397.2,3396.8,0.48268025]
[1732401700082,0.04720614,3396.9,3396.8,0.48268025]
[1732401700583,6.03675026,3397.2,3396.8,0.48268025]
[1732401700783,0.04726834,3397.1,3396.8,0.48268025]
[1732401701379,0.01731975,3396.8,3396.7,1.0646]
[1732401701677,0.06452263,3396.8,3396.7,1.0646]
[1732401704045,5.49175668,3397.2,3396.7,1.0646]
[1732401704250,0.7962,3397.9,3397.1,0.2936]
[1732401704479,0.7962,3397.9,3397.2,0.02942968]
[1732401705479,0.0409746,3397.8,3397.2,0.02942968]
[1732401706069,0.7835046,3397.9,3397.2,0.02942968]
[1732401706382,0.03960878,3397.8,3397.2,0.02942968]
[1732401706746,0.03960878,3397.8,3397.4,0.88555921]
[1732401708459,0.03960878,3397.8,3397.4,3.88555921]
[1732401708664,0.03960878,3397.8,3397.5,0.44091511]
[1732401709156,0.03960878,3397.8,3397.5,1.23011511]
[1732401709357,2.04323193,3398.2,3397.7,3.0]
[1732401709659,0.03605291,3398.1,3397.7,0.32302814]
[1732401709990,0.03605291,3398.1,3397.7,3.32302814]
[1732401710152,0.03605291,3398.1,3397.9,0.2936]
[1732401710991,0.9171,3398.8,3398.0,0.7852]
[1732401711195,0.8171,3398.8,3398.2,3.0]
[1732401711348,0.8171,3398.8,3398.0,1.0788]
[1732401711548,0.03390982,3398.7,3398.0,1.0788]
[1732401711781,0.03390982,3398.7,3398.0,1.10822294]
[1732401711984,0.03390982,3398.7,3398.1,0.16505799]
[1732401712190,0.03390982,3398.7,3398.2,0.32302294]
[1732401712501,0.03390982,3398.7,3398.2,0.2936]
[1732401712988,0.03390982,3398.7,3398.2,3.2936]
[1732401713491,0.03390982,3398.7,3398.3,0.2936]
[1732401713791,0.8171,3398.8,3398.3,0.2936]
[1732401713953,0.03390982,3398.7,3398.3,0.2936]
[1732401714154,0.8171,3398.8,3398.3,0.2936]
[1732401714354,0.03390982,3398.7,3398.3,0.2936]
[1732401714592,0.8171,3398.8,3398.3,0.2936]
[1732401714797,0.03390982,3398.7,3398.3,0.2936]
[1732401715158,0.8171,3398.8,3398.3,0.2936]
[1732401715396,0.03390982,3398.7,3398.1,0.2936]
[1732401715894,0.03390982,3398.7,3398.3,0.2936]
[1732401716389,0.03387875,3398.6,3398.3,0.2936]
[1732401716600,0.8171,3398.8,3398.3,0.2936]
[1732401716759,0.03384769,3398.5,3398.3,0.2936]
[1732401717088,2.06413193,3399.0,3398.1,0.2936]
[1732401717291,0.03381662,3398.4,3398.1,0.2936]
[1732401717495,2.06413193,3399.0,3398.1,0.2936]
[1732401717658,0.03378555,3398.3,3398.1,0.2936]
[1732401717994,0.03375447,3398.2,3398.1,0.2936]
[1732401718197,2.06413193,3399.0,3398.1,0.46464357]
[1732401718652,0.03397195,3398.9,3398.1,0.46464357]
[1732401719899,0.03397195,3398.9,3398.4,0.2936]
[1732401720206,0.8171,3399.2,3398.6,0.2936]
[1732401720674,0.03412619,3399.1,3398.9,3.0]
[1732401721192,0.03412619,3399.1,3398.7,0.2936]
[1732401721400,1.24703193,3398.9,3398.3,0.2936]
[1732401721555,0.8171,3398.8,3398.5,3.0]
[1732401721759,0.03412409,3398.7,3398.3,0.2936]
[1732401722061,0.8171,3398.8,3398.3,0.2936]
[1732401722256,0.03294925,3398.6,3398.2,0.81560682]
[1732401722468,0.03298052,3398.7,3398.2,0.53090482]
[1732401722677,0.03291838,3398.5,3398.2,0.53090482]
[1732401723004,0.0885274,3399.7,3398.3,1.103]
[1732401723005,0.03288731,3398.4,3398.3,1.103]
[1732401723429,2.05593193,3399.3,3398.3,1.103]
[1732401723871,0.897,3398.2,3398.1,0.53134934]
[1732401724069,0.03211031,3399.2,3398.2,0.2936]
[1732401724298,2.05593193,3399.3,3398.2,0.2936]
[1732401724483,2.28152512,3399.3,3398.2,0.2936]
[1732401725312,2.05593193,3399.3,3398.0,0.2936]
[1732401726209,2.05593193,3399.3,3398.1,0.2936]
[1732401726718,0.8089,3399.5,3398.1,0.2936]
[1732401726870,0.8089,3399.5,3398.5,0.2936]
[1732401727073,0.8089,3399.5,3398.9,0.2936]
[1732401727504,0.8089,3399.5,3398.9,0.46139552]
[1732401727713,0.8089,3399.5,3398.9,0.2936]
[1732401728715,0.8089,3399.5,3398.9,3.2936]
[1732401729575,0.8089,3399.5,3398.9,0.2936]
[1732401730076,0.8089,3399.5,3398.9,3.2936]
[1732401730274,0.8089,3399.5,3398.9,0.2936]
[1732401730470,0.8089,3399.5,3399.0,0.2936]
[1732401730471,1.13334593,3399.5,3399.0,0.2936]
[1732401730974,0.7561,3399.2,3399.0,0.2936]
[1732401731385,0.1,3399.1,3398.7,0.2936]
[1732401731708,0.7561,3399.0,3398.7,0.2936]
[1732401731886,2.00313193,3399.0,3398.7,0.2936]
[1732401732676,2.00313193,3399.0,3398.4,0.2936]
[1732401733713,2.00313193,3399.0,3398.3,0.2936]
[1732401734884,0.7561,3399.0,3398.3,0.4564269]
[1732401735511,0.03103986,3398.9,3398.3,0.4564269]
[1732401737813,0.03103986,3398.9,3398.8,0.2936]
[1732401739331,0.82391845,3398.9,3398.8,0.2936]
[1732401740187,0.92391845,3398.9,3398.8,0.2936]
[1732401740489,0.1,3398.2,3397.9,0.2936]
[1732401740830,0.1,3398.2,3397.3,0.793]
[1732401740831,0.78685404,3398.1,3397.3,0.793]
[1732401741121,0.78685404,3398.1,3396.6,1.61169557]
[1732401741122,1.38382001,3398.0,3397.2,0.5377951]
[1732401741415,1.38382001,3398.0,3397.1,0.58614788]
[1732401741416,0.1,3397.6,3397.1,0.58614788]
[1732401741617,0.03056756,3397.5,3397.2,0.2936]
[1732401741924,0.06736095,3397.5,3397.2,0.2936]
[1732401742225,0.7561,3397.3,3396.8,0.2936]
[1732401742384,0.1,3396.9,3396.0,1.19829151]
[1732401742584,0.03014333,3396.8,3396.1,0.2936]
[1732401742827,0.03014333,3396.8,3396.3,0.2936]
[1732401744081,0.8148,3396.6,3396.3,0.2936]
[1732401744526,0.02992701,3396.5,3396.2,0.73315988]
[1732401744687,0.02992701,3396.5,3396.3,0.20641685]
[1732401744895,0.02992701,3396.5,3395.7,0.36466364]
[1732401745099,0.02992701,3396.5,3395.7,0.53325697]
[1732401745295,0.8148,3396.6,3395.6,0.8098]
[1732401746110,0.8148,3396.6,3395.7,0.38098]
[1732401747203,0.8148,3396.6,3396.0,0.58250318]
[1732401750721,0.1,3396.5,3396.0,0.58250318]
[1732401754615,0.1,3396.5,3396.0,0.38250318]
[1732401765334,0.03315922,3396.4,3396.0,0.38250318]
[1732401765657,0.1,3396.5,3396.0,0.38250318]
[1732401766048,0.03315922,3396.4,3396.0,0.7588515]
[1732401766522,0.1,3396.5,3396.0,0.7588515]
[1732401766719,0.03315922,3396.4,3396.0,0.7588515]
[1732401766946,0.1,3396.5,3396.0,0.7588515]
[1732401767225,0.03315922,3396.4,3396.0,0.7588515]
[1732401767433,0.1,3396.5,3396.0,0.7588515]
[1732401767638,0.03592249,3396.4,3396.0,0.7588515]
[1732401768043,0.1,3396.5,3396.0,0.7588515]
[1732401768327,0.03592249,3396.4,3396.0,0.7588515]
[1732401768528,0.1,3396.5,3396.0,0.7588515]
[1732401768760,0.03592249,3396.4,3396.0,0.7588515]
[1732401768956,0.1,3396.5,3396.0,0.7588515]
[1732401769161,0.03592249,3396.4,3396.0,0.7588515]
[1732401769338,0.1,3396.5,3396.0,0.7588515]
[1732401769539,0.03592249,3396.4,3396.0,0.7588515]
[1732401769862,0.1,3396.5,3396.0,0.7588515]
[1732401770234,0.03592249,3396.4,3396.0,0.5588515]
[1732401770453,0.1,3396.5,3396.0,0.5588515]
[1732401770962,0.03592249,3396.4,3396.0,0.5588515]
[1732401771201,0.1,3396.5,3396.0,0.5588515]
[1732401771322,0.03315922,3396.4,3396.0,0.5588515]
[1732401771524,0.1,3396.5,3396.0,0.5588515]
[1732401771728,0.03315922,3396.4,3396.0,0.5588515]
[1732401771928,0.1,3396.5,3396.0,0.5588515]
[1732401772254,0.03592249,3396.4,3396.0,0.5588515]
[1732401772630,0.1,3396.5,3396.0,0.5588515]
[1732401772924,0.03312651,3396.4,3396.0,0.5588515]
[1732401773130,0.1,3396.5,3396.0,0.5588515]
[1732401773358,0.03312651,3396.4,3396.0,0.5588515]
[1732401773742,0.1,3396.5,3396.0,0.5588515]
[1732401773941,0.03312651,3396.4,3396.0,0.5588515]
[1732401774171,0.1,3396.5,3396.0,0.5588515]
[1732401774341,0.03588705,3396.4,3396.0,0.5588515]
[1732401774537,0.1,3396.5,3396.0,0.5588515]
[1732401774855,0.03312651,3396.4,3396.0,0.5588515]
[1732401775286,0.1,3396.5,3396.0,0.5588515]
[1732401775666,0.03312651,3396.4,3396.0,0.5588515]
[1732401776060,0.1,3396.5,3396.0,0.5588515]
[1732401776572,0.03312651,3396.4,3396.0,0.5588515]
[1732401776768,0.1,3396.5,3396.1,0.8236]
[1732401777096,0.1,3396.5,3396.0,0.5588515]
[1732401777097,0.9287,3396.5,3396.0,0.5588515]
[1732401777472,0.8287,3396.5,3396.0,0.5588515]
[1732401777674,0.9287,3396.5,3396.0,0.5588515]
[1732401779519,0.9287,3396.5,3396.0,0.18250318]
[1732401780608,0.01749682,3396.0,3395.9,0.8236]
[1732401785508,0.01749682,3396.0,3395.9,1.41208578]
[1732401791580,0.01749682,3396.0,3395.9,0.58848578]
[1732401791781,0.01749682,3396.0,3395.9,0.8240986]
[1732401800620,0.01749682,3396.0,3395.9,0.23561282]
[1732401804228,0.05320936,3396.0,3395.9,0.23561282]
[1732401804425,0.01749682,3396.0,3395.9,0.23561282]
[1732401804930,0.05046224,3396.0,3395.9,0.23561282]
[1732401805138,0.01749682,3396.0,3395.9,0.23561282]
[1732401805339,0.05046224,3396.0,3395.9,0.23561282]
[1732401805654,0.26438718,3395.9,3395.8,0.59001468]
[1732401805849,0.8287,3396.5,3395.8,1.08086803]
[1732401809705,0.1,3396.4,3395.8,1.08086803]
[1732401809911,0.1,3396.4,3395.9,0.23993869]
[1732401810948,0.90504658,3397.4,3395.9,0.23993869]
[1732401811130,0.04121513,3396.3,3395.9,0.23993869]
[1732401811455,0.57210581,3397.3,3396.0,0.16260534]
[1732401811621,0.04160767,3397.2,3396.0,0.16260534]
[1732401811941,0.17398182,3397.1,3396.0,0.16260534]
[1732401812248,0.04151439,3397.0,3396.0,0.16260534]
[1732401812451,0.02210581,3396.9,3396.0,0.16260534]
[1732401812659,0.04142109,3396.8,3396.0,0.16260534]
[1732401813851,0.02210581,3397.0,3396.0,0.16260534]
[1732401814060,0.87076774,3396.9,3396.0,0.16260534]
[1732401814355,0.02210581,3396.8,3396.0,0.16260534]
[1732401814849,0.04137444,3396.7,3396.0,0.16260534]